fUST/lending_fUST_20250422
["ID","MTS","AMOUNT","RATE_DAILY","PERIOD"]
[358593558,1745297438456,-513.95697712,0.0002286,2]
[358593560,1745297438465,-500.0,0.0002286,2]
[358593562,1745297438475,-500.0,0.0002286,2]
[358593564,1745297438484,-301.15312547,0.0002286,2]
[358593566,1745297438494,-500.0,0.0002286,2]
[358593568,1745297438503,-500.0,0.0002286,2]
[358593570,1745297438513,-500.0,0.0002286,2]
[358593572,1745297438522,-500.0,0.0002286,2]
[358593574,1745297438531,-500.0,0.0002286,2]
[358593576,1745297438541,-500.0,0.0002286,2]
[358593578,1745297438550,-500.0,0.0002286,2]
[358593580,1745297438559,-500.0,0.0002286,2]
[358593582,1745297438568,-500.0,0.0002286,2]
[358593584,1745297438577,-500.0,0.0002286,2]
[358593586,1745297438587,-500.0,0.0002286,2]
[358593588,1745297438596,-500.0,0.0002286,2]
[358593590,1745297438605,-500.0,0.0002286,2]
[358593592,1745297438614,-500.0,0.0002286,2]
[358593594,1745297438624,-500.0,0.0002286,2]
[358593596,1745297438633,-500.0,0.0002286,2]
[358593598,1745297438642,-500.0,0.0002286,2]
[358593600,1745297438652,-500.0,0.0002286,2]
[358593602,1745297438661,-500.0,0.0002286,2]
[358593604,1745297438670,-500.0,0.0002286,2]
[358593606,1745297438679,-500.0,0.0002286,2]
[358593608,1745297438689,-500.0,0.0002286,2]
[358593610,1745297438698,-500.0,0.0002286,2]
[358593612,1745297438711,-500.0,0.0002286,2]
[358593613,1745297438720,-528.95549616,0.0002286,2]
[358593614,1745297438729,-500.0,0.0002286,2]
[358593615,1745297438738,-500.0,0.0002286,2]
[358593616,1745297438749,-9529.36492274,0.00022861,3]
[358593617,1745297438758,-90848.80060968,0.00022861,2]
[358593618,1745297438767,-500.0,0.00022861,2]
[358593619,1745297438777,-500.0,0.00022861,2]
[358593620,1745297438787,-500.0,0.00022861,2]
[358593621,1745297438797,-500.0,0.00022861,2]
[358593622,1745297438806,-1128.74,0.00022861,2]
[358593623,1745297438816,-500.0,0.00022861,2]
[358593624,1745297438825,-500.0,0.00022861,2]
[358593625,1745297438834,-500.0,0.00022861,2]
[358593626,1745297438844,-4531.47,0.00022861,2]
[358593627,1745297438854,-506.40693056,0.00022861,2]
[358593628,1745297438863,-508.46850446,0.00022861,2]
[358593629,1745297438873,-500.0,0.00022861,2]
[358593630,1745297438882,-502.95433099,0.00022861,2]
[358593631,1745297438891,-500.0,0.00022861,2]
[358593632,1745297438901,-500.0,0.00022861,2]
[358593633,1745297438910,-500.0,0.00022862,2]
[358593634,1745297438919,-500.0,0.00022862,2]
[358593635,1745297438929,-5707.66,0.00022862,2]
[358593636,1745297438939,-500.0,0.00022862,2]
[358593637,1745297438948,-500.0,0.00022862,2]
[358593638,1745297438958,-8031.22,0.00022862,2]
[358593639,1745297438969,-180.47326305,0.00022864,2]
[358593640,1745297438978,-500.0,0.00022864,2]
[358593641,1745297438987,-523.82721436,0.00022864,2]
[358593642,1745297438996,-500.0,0.00022864,2]
[358593643,1745297439005,-500.0,0.00022865,2]
[358593644,1745297439014,-501.44044594,0.00022865,2]
[358593645,1745297439023,-508.54937782,0.00022865,2]
[358593646,1745297439032,-504.1950519,0.00022865,2]
[358593647,1745297439041,-665.5,0.00022865,2]
[358593648,1745297439051,-500.0,0.00022865,2]
[358593649,1745297439060,-500.0,0.00022865,2]
[358593650,1745297439069,-500.0,0.00022865,2]
[358593651,1745297439078,-500.0,0.00022865,2]
[358593652,1745297439087,-500.0,0.00022865,2]
[358593653,1745297439096,-500.0,0.00022865,2]
[358593654,1745297439105,-430.47101598,0.00022865,2]
[358593655,1745297439115,-500.0,0.00022865,2]
[358593656,1745297439126,-505.39067021,0.00022865,2]
[358593657,1745297439135,-531.95129299,0.00022865,2]
[358593658,1745297439148,-500.0,0.00022865,2]
[358593659,1745297439160,-500.0,0.00022865,2]
[358593660,1745297439170,-500.0,0.00022865,2]
[358593661,1745297439179,-500.0,0.00022865,2]
[358593662,1745297439187,-500.0,0.00022865,2]
[358593663,1745297439196,-500.0,0.00022865,2]
[358593664,1745297439205,-500.0,0.00022865,2]
[358593665,1745297439215,-589.84,0.00022865,2]
[358593666,1745297439224,-500.0,0.00022865,2]
[358593667,1745297439233,-502.60782368,0.00022865,2]
[358593668,1745297439243,-500.0,0.00022865,2]
[358593669,1745297439253,-500.0,0.00022865,2]
[358593670,1745297439263,-500.0,0.00022865,2]
[358593671,1745297439272,-500.07134799,0.00022865,2]
[358593672,1745297439282,-500.0,0.00022865,2]
[358593673,1745297439291,-500.0,0.00022865,2]
[358593674,1745297439301,-500.0,0.00022865,2]
[358593675,1745297439311,-510.72829712,0.00022865,2]
[358593676,1745297439321,-500.0,0.00022865,2]
[358593677,1745297439332,-500.0,0.00022865,2]
[358593678,1745297439344,-500.0,0.00022865,2]
[358593679,1745297439353,-896.95,0.00022865,2]
[358593680,1745297439362,-500.0,0.00022865,2]
[358593681,1745297439371,-503.57834202,0.00022865,2]
[358593682,1745297439380,-513.82628286,0.00022865,2]
[358593683,1745297439389,-500.0,0.00022865,2]
[358593684,1745297439399,-501.47375915,0.00022865,2]
[358593685,1745297439408,-628.93,0.00022865,2]
[358593686,1745297439417,-500.49882571,0.00022865,2]
[358593687,1745297439427,-500.0,0.00022865,2]
[358593688,1745297439436,-500.0,0.00022865,2]
[358593689,1745297439445,-500.0,0.00022865,2]
[358593690,1745297439454,-500.0,0.00022865,2]
[358593691,1745297439464,-500.0,0.00022865,2]
[358593692,1745297439473,-500.0,0.00022865,2]
[358593693,1745297439483,-500.0,0.00022865,2]
[358593694,1745297439562,-501.27530045,0.00022865,2]
[358593695,1745297439571,-502.16583751,0.00022865,2]
[358593696,1745297439581,-500.0,0.00022865,2]
[358593697,1745297439590,-500.0,0.00022865,2]
[358593698,1745297439599,-500.0,0.00022865,2]
[358593699,1745297439609,-500.0,0.00022865,2]
[358593700,1745297439619,-1000.0,0.00022865,2]
[358593701,1745297439628,-500.0,0.00022865,2]
[358593702,1745297439637,-500.0,0.00022865,2]
[358593703,1745297439646,-500.0,0.00022865,2]
[358593704,1745297439656,-599.28146797,0.00022865,2]
[358593705,1745297439665,-500.0,0.00022865,2]
[358593706,1745297439675,-500.0,0.00022865,2]
[358593707,1745297439684,-501.86197263,0.00022865,2]
[358593708,1745297439694,-500.0,0.00022865,2]
[358593709,1745297439707,-200.95080609,0.00022865,2]
[358593710,1745297439719,-505.1590037,0.00022865,2]
[358593711,1745297439728,-500.0,0.00022865,2]
[358593712,1745297439739,-830.76,0.00022865,2]
[358593713,1745297439748,-500.0,0.00022865,2]
[358593714,1745297439758,-501.15703685,0.00022865,2]
[358593715,1745297439767,-508.22077406,0.00022865,2]
[358593716,1745297439777,-216.4177862,0.00022865,2]
[358593717,1745297439787,-500.0,0.00022865,2]
[358593718,1745297439797,-504.57332965,0.00022865,2]
[358593719,1745297439806,-500.0,0.00022865,2]
[358593720,1745297439817,-506.63485469,0.00022865,2]
[358593721,1745297439826,-1405.24,0.00022865,2]
[358593722,1745297439835,-508.56323508,0.00022865,2]
[358593723,1745297439845,-500.0,0.00022865,2]
[358593724,1745297439854,-500.0,0.00022865,2]
[358593725,1745297439865,-514.71,0.00022865,2]
[358593727,1745297439874,-500.0,0.00022865,2]
[358593728,1745297439884,-507.9827039,0.00022865,2]
[358593729,1745297439893,-500.0,0.00022865,2]
[358593730,1745297439902,-500.0,0.00022865,2]
[358593731,1745297439911,-500.0,0.00022865,2]
[358593732,1745297439921,-630.73,0.00022865,2]
[358593733,1745297439930,-500.0,0.00022865,2]
[358593734,1745297439939,-500.0,0.00022865,2]
[358593735,1745297439948,-500.0,0.00022865,2]
[358593736,1745297439958,-502.85915773,0.00022865,2]
[358593737,1745297439967,-500.0,0.00022865,2]
[358593738,1745297439976,-500.62260915,0.00022865,2]
[358593739,1745297439986,-500.0,0.00022865,2]
[358593740,1745297439995,-503.59119997,0.00022865,2]
[358593741,1745297440004,-500.0,0.00022865,2]
[358593742,1745297440014,-500.0,0.00022865,2]
[358593743,1745297440023,-500.0,0.00022865,2]
[358593744,1745297440033,-1109.86,0.00022865,2]
[358593745,1745297440042,-552.97883927,0.00022865,2]
[358593746,1745297440051,-500.0,0.00022865,2]
[358593747,1745297440060,-508.03522701,0.00022865,2]
[358593748,1745297440070,-501.41201005,0.00022865,2]
[358593749,1745297440080,-500.0,0.00022865,2]
[358593750,1745297440089,-526.8016553,0.00022865,2]
[358593751,1745297440099,-502.45233788,0.00022865,2]
[358593752,1745297440108,-500.0,0.00022865,2]
[358593753,1745297440117,-500.0,0.00022865,2]
[358593754,1745297440126,-501.88931397,0.00022865,2]
[358593755,1745297440135,-5798.15,0.00022865,2]
[358593756,1745297440144,-5798.15,0.00022865,2]
[358593757,1745297440153,-5798.15,0.00022865,2]
[358593758,1745297440162,-5798.15,0.00022865,2]
[358593759,1745297440171,-5798.15,0.00022865,2]
[358593760,1745297440182,-505.85368283,0.00022865,2]
[358593761,1745297440191,-544.72591149,0.00022865,2]
[358593762,1745297440200,-500.0,0.00022865,2]
[358593763,1745297440209,-609.2273853,0.00022865,2]
[358593764,1745297440218,-500.0,0.00022865,2]
[358593765,1745297440229,-505.25597955,0.00022865,2]
[358593766,1745297440238,-500.0,0.00022865,2]
[358593767,1745297440247,-500.0,0.00022865,2]
[358593768,1745297440258,-506.5047869,0.00022865,2]
[358593769,1745297440268,-500.0,0.00022865,2]
[358593770,1745297440277,-500.0,0.00022865,2]
[358593771,1745297440287,-500.0,0.00022865,2]
[358593772,1745297440296,-518.59833427,0.00022865,2]
[358593773,1745297440305,-500.0,0.00022865,2]
[358593774,1745297440316,-502.51998968,0.00022865,2]
[358593775,1745297440326,-500.0,0.00022865,2]
[358593776,1745297440335,-500.0,0.00022865,2]
[358593777,1745297440345,-507.9750831,0.00022865,2]
[358593778,1745297440355,-500.0,0.00022865,2]
[358593779,1745297440366,-500.0,0.00022865,2]
[358593780,1745297440375,-500.0,0.00022865,2]
[358593781,1745297440385,-500.0,0.00022865,2]
[358593782,1745297440394,-500.0,0.00022865,2]
[358593783,1745297440404,-500.0,0.00022865,2]
[358593784,1745297440414,-500.0,0.00022865,2]
[358593785,1745297440423,-500.0,0.00022865,2]
[358593786,1745297440432,-500.0,0.00022865,2]
[358593787,1745297440441,-500.0,0.00022865,2]
[358593788,1745297440451,-501.80628382,0.00022865,2]
[358593789,1745297440460,-500.0,0.00022865,2]
[358593790,1745297440468,-500.0,0.00022865,2]
[358593791,1745297440478,-500.0,0.00022865,2]
[358593792,1745297440487,-5798.15,0.00022867,2]
[358593793,1745297440496,-5798.15,0.00022867,2]
[358593794,1745297440506,-39854.71545354,0.00022868,2]
[358593795,1745297440515,-2055.3420182,0.00022872,3]
[358593796,1745297440525,-729.16666667,0.00022872,3]
[358593798,1745297440535,-160.0,0.00022872,3]
[358593799,1745297440547,-500.0,0.00022872,2]
[358593800,1745297440556,-500.0,0.00022872,2]
[358593801,1745297440565,-503.01834311,0.00022872,2]
[358593802,1745297440574,-500.0,0.00022872,2]
[358593803,1745297440583,-500.0,0.00022872,2]
[358593804,1745297440593,-500.0,0.00022872,2]
[358593805,1745297440603,-500.0,0.00022872,2]
[358593806,1745297440612,-500.0,0.00022872,2]
[358593807,1745297440621,-500.0,0.00022872,2]
[358593808,1745297440631,-500.0,0.00022872,2]
[358593809,1745297440640,-500.0,0.00022872,2]
[358593811,1745297440649,-504.97304506,0.00022872,2]
[358593812,1745297440659,-505.35538776,0.00022872,2]
[358593813,1745297440668,-500.0,0.00022872,2]
[358593814,1745297440678,-512.16638216,0.00022872,2]
[358593815,1745297440687,-500.0,0.00022872,2]
[358593816,1745297440696,-500.0,0.00022872,2]
[358593818,1745297440709,-500.0,0.00022872,2]
[358593821,1745297440719,-500.0,0.00022872,2]
[358593822,1745297440729,-500.0,0.00022872,2]
[358593823,1745297440738,-500.0,0.00022872,2]
[358593824,1745297440749,-560.59642817,0.00022872,2]
[358593825,1745297440758,-542.27178735,0.00022872,2]
[358593826,1745297440768,-505.97162203,0.00022872,2]
[358593827,1745297440778,-500.0,0.00022872,2]
[358593828,1745297440787,-500.0,0.00022872,2]
[358593829,1745297440797,-500.0,0.00022872,2]
[358593830,1745297440873,-500.0,0.00022872,2]
[358593831,1745297440882,-500.0,0.00022872,2]
[358593832,1745297440892,-500.0,0.00022872,2]
[358593833,1745297440902,-500.0,0.00022872,2]
[358593834,1745297440911,-500.0,0.00022872,2]
[358593835,1745297440920,-500.0,0.00022872,2]
[358593836,1745297440930,-500.0,0.00022872,2]
[358593837,1745297440939,-359.52222934,0.00022872,2]
[358593838,1745297440949,-500.0,0.00022872,2]
[358593839,1745297440958,-506.28611781,0.00022872,2]
[358593840,1745297440968,-500.0,0.00022872,2]
[358593841,1745297440978,-500.0,0.00022872,2]
[358593842,1745297440987,-506.40026195,0.00022872,2]
[358593843,1745297440996,-500.0,0.00022872,2]
[358593844,1745297441005,-500.0,0.00022872,2]
[358593845,1745297441014,-842.32,0.00022872,2]
[358593846,1745297441024,-1509.58,0.00022872,2]
[358593847,1745297441035,-500.0,0.00022872,2]
[358593848,1745297441046,-500.0,0.00022872,2]
[358593849,1745297441057,-507.81386732,0.00022872,2]
[358593850,1745297441067,-500.0,0.00022872,2]
[358593851,1745297441076,-500.0,0.00022872,2]
[358593852,1745297441085,-500.0,0.00022872,2]
[358593853,1745297441095,-500.0,0.00022872,2]
[358593854,1745297441105,-500.0,0.00022872,2]
[358593855,1745297441114,-500.0,0.00022872,2]
[358593856,1745297441124,-500.0,0.00022872,2]
[358593857,1745297441133,-500.0,0.00022872,2]
[358593858,1745297441142,-500.0,0.00022872,2]
[358593859,1745297441152,-500.0,0.00022872,2]
[358593860,1745297441161,-500.0,0.00022872,2]
[358593861,1745297441170,-500.0,0.00022872,2]
[358593862,1745297441180,-5798.15,0.00022872,2]
[358593863,1745297441189,-190.56944581,0.00022872,2]
[358593864,1745297441198,-500.0,0.00022872,2]
[358593865,1745297441207,-500.0,0.00022872,2]
[358593866,1745297441216,-500.0,0.00022872,2]
[358593867,1745297441226,-508.9880617,0.00022872,2]
[358593868,1745297441235,-500.0,0.00022872,2]
[358593869,1745297441245,-500.0,0.00022872,2]
[358593870,1745297441254,-500.0,0.00022872,2]
[358593871,1745297441263,-500.0,0.00022872,2]
[358593872,1745297441272,-500.0,0.00022872,2]
[358593873,1745297441282,-502.53091381,0.00022872,2]
[358593874,1745297441292,-501.51253552,0.00022872,2]
[358593875,1745297441301,-500.0,0.00022872,2]
[358593876,1745297441310,-502.00447578,0.00022872,2]
[358593877,1745297441319,-501.2090953,0.00022872,2]
[358593878,1745297441328,-500.0,0.00022872,2]
[358593879,1745297441337,-1776.26,0.00022872,2]
[358593880,1745297441348,-500.0,0.00022872,2]
[358593881,1745297441360,-500.0,0.00022872,2]
[358593882,1745297441370,-383.1626213,0.00022872,2]
[358593883,1745297441379,-500.0,0.00022872,2]
[358593884,1745297441388,-5637.39,0.00022872,2]
[358593885,1745297441397,-500.0,0.00022872,2]
[358593886,1745297441406,-500.0,0.00022872,2]
[358593887,1745297441416,-551.19868462,0.00022873,2]
[358593888,1745297441425,-501.23968947,0.00022873,2]
[358593889,1745297441434,-500.0,0.00022873,2]
[358593890,1745297441445,-500.0,0.00022873,2]
[358593891,1745297441455,-529.39,0.00022889,2]
[358593892,1745297441465,-500.0,0.00022889,2]
[358593893,1745297441474,-7779.8722282,0.0002289,2]
[358593894,1745297441484,-420.73667954,0.00023,3]
[358593895,1745297441493,-160.0,0.00023,3]
[358593896,1745297441502,-298.34680829,0.00023039,2]
[358593897,1745297441511,-500.0,0.00023135,2]
[358593898,1745297441520,-500.0,0.00023135,2]
[358593899,1745297441529,-500.0,0.00023135,2]
[358593900,1745297441538,-500.0,0.00023135,2]
[358593901,1745297441547,-1128.74,0.00023135,2]
[358593902,1745297441558,-507.35394422,0.00023135,2]
[358593903,1745297441567,-500.0,0.00023135,2]
[358593904,1745297441577,-500.0,0.00023135,2]
[358593905,1745297441586,-4531.47,0.00023135,2]
[358593906,1745297441595,-500.0,0.00023135,2]
[358593907,1745297441605,-500.0,0.00023135,2]
[358593908,1745297441614,-500.0,0.00023136,2]
[358593909,1745297441624,-500.0,0.00023136,2]
[358593910,1745297441633,-5707.66,0.00023136,2]
[358593911,1745297441642,-500.0,0.00023136,2]
[358593913,1745297441652,-500.0,0.00023136,2]
[358593914,1745297441662,-8031.22,0.00023136,2]
[358593915,1745297441671,-500.0,0.00023139,2]
[358593916,1745297441680,-665.5,0.00023139,2]
[358593917,1745297441690,-500.0,0.00023139,2]
[358593918,1745297441700,-500.0,0.00023139,2]
[358593919,1745297441712,-229.05436689,0.00023139,2]
[358593920,1745297441721,-505.98973446,0.00023139,2]
[358593921,1745297441732,-500.0,0.00023139,2]
[358593922,1745297441743,-500.0,0.00023139,2]
[358593923,1745297441753,-500.0,0.00023139,2]
[358593924,1745297441763,-500.0,0.00023139,2]
[358593925,1745297441772,-500.0,0.00023139,2]
[358593926,1745297441782,-500.0,0.00023139,2]
[358593927,1745297441792,-505.79042895,0.00023139,2]
[358593928,1745297441801,-500.0,0.00023139,2]
[358593929,1745297441812,-500.0,0.00023139,2]
[358593930,1745297441821,-500.0,0.00023139,2]
[358593931,1745297441832,-589.84,0.00023139,2]
[358593932,1745297441841,-500.0,0.00023139,2]
[358593933,1745297441851,-500.0,0.00023139,2]
[358593934,1745297441860,-504.42577727,0.00023139,2]
[358593935,1745297441870,-500.0,0.00023139,2]
[358593936,1745297441879,-500.0,0.00023139,2]
[358593937,1745297441888,-500.0,0.00023139,2]
[358593938,1745297441898,-500.0,0.00023139,2]
[358593939,1745297441908,-507.99607365,0.00023139,2]
[358593940,1745297441919,-500.0,0.00023139,2]
[358593941,1745297441928,-896.95,0.00023139,2]
[358593942,1745297441938,-503.24192904,0.00023139,2]
[358593943,1745297441947,-500.0,0.00023139,2]
[358593944,1745297441957,-628.93,0.00023139,2]
[358593945,1745297441967,-504.81195936,0.00023139,2]
[358593947,1745297441977,-500.0,0.00023139,2]
[358593948,1745297441987,-500.0,0.00023139,2]
[358593949,1745297441996,-500.0,0.00023139,2]
[358593950,1745297442005,-500.0,0.00023139,2]
[358593951,1745297442078,-501.45464113,0.00023139,2]
[358593952,1745297442087,-500.0,0.00023139,2]
[358593953,1745297442097,-500.0,0.00023139,2]
[358593954,1745297442106,-507.68514085,0.00023139,2]
[358593955,1745297442116,-500.0,0.00023139,2]
[358593956,1745297442125,-500.0,0.00023139,2]
[358593957,1745297442135,-1000.0,0.00023139,2]
[358593958,1745297442144,-500.0,0.00023139,2]
[358593959,1745297442154,-500.0,0.00023139,2]
[358593960,1745297442163,-504.40342907,0.00023139,2]
[358593961,1745297442172,-500.0,0.00023139,2]
[358593962,1745297442181,-500.0,0.00023139,2]
[358593963,1745297442191,-500.0,0.00023139,2]
[358593964,1745297442201,-500.0,0.00023139,2]
[358593965,1745297442210,-830.76,0.00023139,2]
[358593966,1745297442219,-521.34869465,0.00023139,2]
[358593967,1745297442229,-500.0,0.00023139,2]
[358593968,1745297442238,-500.0,0.00023139,2]
[358593969,1745297442247,-1405.24,0.00023139,2]
[358593970,1745297442257,-500.0,0.00023139,2]
[358593971,1745297442267,-500.0,0.00023139,2]
[358593972,1745297442276,-514.71,0.00023139,2]
[358593973,1745297442286,-500.0,0.00023139,2]
[358593974,1745297442295,-500.0,0.00023139,2]
[358593975,1745297442305,-500.0,0.00023139,2]
[358593976,1745297442314,-500.0,0.00023139,2]
[358593977,1745297442324,-630.73,0.00023139,2]
[358593978,1745297442333,-500.0,0.00023139,2]
[358593979,1745297442343,-500.0,0.00023139,2]
[358593980,1745297442352,-500.0,0.00023139,2]
[358593981,1745297442362,-500.0,0.00023139,2]
[358593982,1745297442371,-500.0,0.00023139,2]
[358593983,1745297442380,-500.0,0.00023139,2]
[358593984,1745297442390,-500.0,0.00023139,2]
[358593985,1745297442399,-500.0,0.00023139,2]
[358593986,1745297442409,-1109.86,0.00023139,2]
[358593987,1745297442418,-500.0,0.00023139,2]
[358593988,1745297442427,-500.0,0.00023139,2]
[358593989,1745297442437,-500.0,0.00023139,2]
[358593990,1745297442447,-500.0,0.00023139,2]
[358593991,1745297442456,-500.0,0.00023139,2]
[358593992,1745297442465,-500.0,0.00023139,2]
[358593993,1745297442475,-500.0,0.00023139,2]
[358593994,1745297442484,-500.0,0.00023139,2]
[358593995,1745297442494,-500.0,0.00023139,2]
[358593996,1745297442503,-500.0,0.00023139,2]
[358593997,1745297442513,-500.0,0.00023139,2]
[358593998,1745297442522,-500.0,0.00023139,2]
[358593999,1745297442531,-500.0,0.00023139,2]
[358594000,1745297442541,-500.0,0.00023139,2]
[358594001,1745297442551,-382.14794993,0.00023139,2]
[358594002,1745297442560,-500.0,0.00023139,2]
[358594003,1745297442570,-500.0,0.00023139,2]
[358594004,1745297442579,-500.0,0.00023139,2]
[358594005,1745297442588,-500.0,0.00023139,2]
[358594006,1745297442597,-500.0,0.00023139,2]
[358594007,1745297442606,-500.0,0.00023139,2]
[358594008,1745297442616,-500.0,0.00023139,2]
[358594009,1745297442626,-500.0,0.00023139,2]
[358594010,1745297442635,-500.0,0.00023139,2]
[358594011,1745297442644,-500.0,0.00023139,2]
[358594012,1745297442654,-500.0,0.00023139,2]
[358594013,1745297442663,-500.0,0.00023139,2]
[358594014,1745297442673,-500.0,0.00023146,2]
[358594015,1745297442682,-514.79736689,0.00023146,2]
[358594016,1745297442691,-500.0,0.00023146,2]
[358594017,1745297442704,-500.0,0.00023146,2]
[358594018,1745297442713,-500.0,0.00023146,2]
[358594019,1745297442723,-500.0,0.00023146,2]
[358594020,1745297442732,-500.0,0.00023146,2]
[358594021,1745297442742,-500.0,0.00023146,2]
[358594022,1745297442753,-505.90572447,0.00023146,2]
[358594023,1745297442762,-413.0823599,0.00023146,2]
[358594024,1745297442772,-500.0,0.00023146,2]
[358594025,1745297442782,-500.0,0.00023146,2]
[358594026,1745297442792,-500.0,0.00023146,2]
[358594027,1745297442802,-500.0,0.00023146,2]
[358594028,1745297442811,-500.0,0.00023146,2]
[358594029,1745297442820,-500.0,0.00023146,2]
[358594031,1745297442829,-500.0,0.00023146,2]
[358594032,1745297442838,-500.0,0.00023146,2]
[358594033,1745297442848,-500.0,0.00023146,2]
[358594034,1745297442857,-500.0,0.00023146,2]
[358594035,1745297442866,-502.23771434,0.00023146,2]
[358594036,1745297442875,-500.0,0.00023146,2]
[358594037,1745297442885,-500.0,0.00023146,2]
[358594038,1745297442894,-500.0,0.00023146,2]
[358594039,1745297442903,-151.0,0.00023146,7]
[358594040,1745297442912,-500.0,0.00023146,2]
[358594041,1745297442922,-500.0,0.00023146,2]
[358594042,1745297442933,-151.0,0.00023146,7]
[358594044,1745297442943,-506.13580296,0.00023146,2]
[358594045,1745297442952,-500.0,0.00023146,2]
[358594046,1745297442961,-500.0,0.00023146,2]
[358594047,1745297442970,-842.32,0.00023146,2]
[358594048,1745297442982,-1509.58,0.00023146,2]
[358594049,1745297442991,-500.0,0.00023146,2]
[358594050,1745297443001,-500.0,0.00023146,2]
[358594052,1745297443011,-500.0,0.00023146,2]
[358594054,1745297443020,-500.0,0.00023146,2]
[358594055,1745297443030,-500.0,0.00023146,2]
[358594056,1745297443040,-151.0,0.00023146,7]
[358594057,1745297443050,-500.0,0.00023146,2]
[358594060,1745297443059,-500.0,0.00023146,2]
[358594062,1745297443069,-151.0,0.00023146,7]
[358594064,1745297443079,-500.0,0.00023146,2]
[358594066,1745297443089,-500.0,0.00023146,2]
[358594067,1745297443100,-622.91853306,0.00023146,2]
[358594068,1745297443109,-500.0,0.00023146,2]
[358594069,1745297443119,-580.27207555,0.00023146,2]
[358594070,1745297443190,-586.0927721,0.00023146,2]
[358594071,1745297443201,-162.84992423,0.00023146,2]
[358594072,1745297443217,-500.0,0.00023146,2]
[358594073,1745297443230,-500.0,0.00023146,2]
[358594074,1745297443239,-500.0,0.00023146,2]
[358594075,1745297443248,-500.0,0.00023146,2]
[358594076,1745297443258,-475.756591,0.00023146,7]
[358594077,1745297443267,-500.0,0.00023146,2]
[358594078,1745297443277,-500.0,0.00023146,2]
[358594079,1745297443286,-500.0,0.00023146,2]
[358594080,1745297443296,-475.756591,0.00023146,7]
[358594081,1745297443306,-269.539494,0.00023146,7]
[358594082,1745297443315,-269.539494,0.00023146,7]
[358594083,1745297443324,-500.0,0.00023146,2]
[358594084,1745297443334,-500.0,0.00023146,2]
[358594085,1745297443343,-1776.26,0.00023146,2]
[358594086,1745297443352,-467.15831734,0.00023146,2]
[358594087,1745297443361,-500.0,0.00023146,2]
[358594088,1745297443371,-500.0,0.00023146,2]
[358594089,1745297443380,-5637.39,0.00023146,2]
[358594090,1745297443389,-500.0,0.00023146,2]
[358594091,1745297443399,-500.0,0.00023146,2]
[358594092,1745297443408,-529.39,0.00023163,2]
[358594093,1745297443417,-500.0,0.00023163,2]
[358594094,1745297443426,-650.0,0.000233,2]
[358594095,1745297443435,-298.34680829,0.00023313,2]
[358594096,1745297443444,-500.0,0.00023409,2]
[358594097,1745297443453,-500.0,0.00023409,2]
[358594098,1745297443462,-500.0,0.00023409,2]
[358594099,1745297443471,-500.0,0.00023409,2]
[358594100,1745297443482,-1128.74,0.00023409,2]
[358594101,1745297443491,-500.0,0.00023409,2]